lending/lending_fUSD_20241005
["ID","MTS","AMOUNT","RATE_DAILY","PERIOD"]
[339910754,1728147216004,-1015.81,0.0004452,120]
[339910755,1728147216013,-934.77,0.0004452,120]
[339910756,1728147216024,-1120.82,0.0004452,120]
[339910757,1728147216033,-790.26,0.0004452,120]
[339910758,1728147216044,-803.58,0.0004452,120]
[339910759,1728147216055,-629.14,0.0004452,120]
[339910760,1728147216066,-500.0,0.0004452,120]
[339910761,1728147216075,-500.0,0.0004452,120]
[339910762,1728147216085,-617.73,0.0004452,120]
[339910763,1728147216094,-816.66,0.0004452,120]
[339910764,1728147216103,-1168.27,0.0004452,120]
[339910765,1728147216112,-684.57,0.0004452,120]
[339910766,1728147216121,-182.85249888,0.0004452,120]
[339910767,1728147216131,-1440.54,0.0004452,120]
[339910768,1728147216139,-886.94,0.0004452,120]
[339910769,1728147216151,-1108.4,0.0004452,120]
[339910770,1728147216161,-150.0,0.00044525,30]
[339910771,1728147216171,-150.0,0.00044542,30]
[339910772,1728147216180,-213.13136741,0.00044553,30]
[339910773,1728147216190,-150.0,0.00044553,30]
[339910774,1728147216200,-205.0,0.0004458,30]
[339910775,1728147216213,-150.0,0.00044597,30]
[339910776,1728147216224,-233.100519,0.00044598,120]
[339910777,1728147216235,-160.67586594,0.000446,120]
[339910778,1728147216245,-213.13136741,0.00044603,30]
[339910779,1728147216256,-150.0,0.00044648,30]
[339910780,1728147216265,-213.13136741,0.00044652,30]
[339910781,1728147216274,-150.0,0.00044695,30]
[339910782,1728147216283,-331.100519,0.00044698,120]
[339910783,1728147216292,-213.13136741,0.00044702,30]
[339910784,1728147216301,-213.13136741,0.00044751,30]
[339910785,1728147216310,-150.0,0.00044754,30]
[339910786,1728147216321,-160.316599,0.00044763,5]
[339910787,1728147216330,-150.0,0.00044782,30]
[339910788,1728147216339,-150.0,0.00044792,30]
[339910789,1728147216348,-233.100519,0.00044798,119]
[339910790,1728147216357,-157.25764114,0.000448,120]
[339910791,1728147216366,-8504.491549,0.000448,30]
[339910792,1728147216375,-213.13136741,0.000448,30]
[339910793,1728147216384,-150.0,0.00044825,30]
[339910794,1728147216394,-213.13136741,0.0004485,30]
[339910795,1728147216404,-150.0,0.0004486,30]
[339910796,1728147216412,-40000.0,0.0004489,120]
[339910797,1728147216422,-150.0,0.0004489,30]
[339910798,1728147216431,-331.100519,0.00044898,120]
[339910799,1728147216443,-213.13136741,0.00044899,30]
[339910800,1728147216453,-859.0,0.000449,32]
[339910801,1728147216463,-150.0,0.00044926,120]
[339910802,1728147216472,-983.0,0.00044927,2]
[339910803,1728147216484,-1218.55,0.00044931,120]
[339910804,1728147216495,-1218.55,0.00044931,120]
[339910805,1728147216505,-1218.55,0.00044931,120]
[339910806,1728147216514,-1218.55,0.00044931,120]
[339910807,1728147216522,-1218.55,0.00044931,120]
[339910808,1728147216531,-1218.55,0.00044931,120]
[339910809,1728147216540,-1218.55,0.00044931,120]
[339910810,1728147216549,-1218.55,0.00044931,120]
[339910811,1728147216559,-1218.55,0.00044931,120]
[339910812,1728147216569,-1218.55,0.00044931,120]
[339910813,1728147216578,-1218.55,0.00044931,120]
[339910814,1728147216587,-1218.55,0.00044931,120]
[339910815,1728147216595,-1218.55,0.00044931,120]
[339910816,1728147216605,-1218.55,0.00044931,120]
[339910817,1728147216614,-1218.55,0.00044931,120]
[339910818,1728147216623,-1218.55,0.00044931,120]
[339910819,1728147216632,-1218.55,0.00044931,120]
[339910820,1728147216641,-1218.55,0.00044931,120]
[339910821,1728147216650,-1218.55,0.00044931,120]
[339910822,1728147216659,-1218.55,0.00044931,120]
[339910823,1728147216668,-1218.55,0.00044931,120]
[339910824,1728147216678,-1218.55,0.00044931,120]
[339910825,1728147216687,-1218.55,0.00044931,120]
[339910826,1728147216696,-1218.60084102,0.00044931,120]
[339910827,1728147216705,-668.66,0.00044931,120]
[339910828,1728147216714,-1684.72,0.00044931,120]
[339910829,1728147216724,-500.0,0.00044931,120]
[339910830,1728147216734,-150.0,0.00044931,120]
[339910831,1728147216744,-1155.52,0.00044931,120]
[339910832,1728147216753,-1004.11,0.00044931,120]
[339910833,1728147216763,-869.62,0.00044931,120]
[339910834,1728147216773,-577.41,0.00044931,120]
[339910835,1728147216782,-1420.73,0.00044931,120]
[339910836,1728147216792,-547.3,0.00044931,120]
[339910837,1728147216801,-500.0,0.00044931,120]
[339910838,1728147216810,-500.0,0.00044931,120]
[339910839,1728147216821,-593.12,0.00044931,120]
[339910840,1728147216831,-634.58,0.00044931,120]
[339910841,1728147216840,-500.0,0.00044931,120]
[339910842,1728147216849,-529.51,0.00044931,120]
[339910843,1728147216862,-1227.07,0.00044931,120]
[339910844,1728147216871,-518.44,0.00044931,120]
[339910845,1728147216881,-907.64,0.00044931,120]
[339910846,1728147216890,-500.0,0.00044931,120]
[339910847,1728147216900,-500.0,0.00044931,120]
[339910848,1728147216910,-780.76,0.00044931,120]
[339910849,1728147216919,-500.0,0.00044931,120]
[339910850,1728147216929,-500.0,0.00044931,7]
[339910851,1728147216939,-1092.02,0.00044931,120]
[339910852,1728147216949,-500.0,0.00044931,120]
[339910853,1728147216958,-959.8,0.00044931,120]
[339910854,1728147216966,-597.47,0.00044931,120]
[339910855,1728147216976,-500.0,0.00044931,120]
[339910856,1728147216985,-500.0,0.00044931,120]
[339910857,1728147216994,-1254.87,0.00044931,120]
[339910858,1728147217003,-257.25365731,0.00044931,120]
[339910859,1728147217013,-500.0,0.00044931,120]
[339910860,1728147217022,-1340.11,0.00044931,120]
[339910861,1728147217031,-1185.33,0.00044931,120]
[339910862,1728147217042,-575.11919408,0.00044931,120]
[339910863,1728147217051,-1060.42,0.00044931,120]
[339910864,1728147217060,-1130.0,0.00044931,120]
[339910865,1728147217075,-952.13,0.00044931,120]
[339910866,1728147217084,-865.66,0.00044931,120]
[339910867,1728147217093,-996.76,0.00044931,120]
[339910868,1728147217103,-1128.68,0.00044931,120]
[339910869,1728147217112,-585.41,0.00044931,120]
[339910870,1728147217122,-1208.3,0.00044931,120]
[339910871,1728147217131,-500.0,0.00044931,120]
[339910872,1728147217141,-999.01,0.00044931,120]
[339910873,1728147217151,-508.91,0.00044931,120]
[339910874,1728147217160,-868.76,0.00044931,120]
[339910875,1728147217170,-1096.8,0.00044931,120]
[339910876,1728147217179,-613.51,0.00044931,120]
[339910877,1728147217188,-930.7,0.00044931,120]
[339910878,1728147217197,-646.65,0.00044931,120]
[339910879,1728147217206,-1272.74,0.00044931,120]
[339910880,1728147217215,-937.71,0.00044931,120]
[339910881,1728147217224,-504.49,0.00044931,120]
[339910882,1728147217234,-845.63,0.00044931,120]
[339910883,1728147217245,-1381.8,0.00044931,120]
[339910884,1728147217254,-500.0,0.00044931,120]
[339910885,1728147217264,-500.0,0.00044931,120]
[339910886,1728147217273,-741.0,0.00044931,120]
[339910887,1728147217283,-500.0,0.00044931,120]
[339910888,1728147217292,-982.24,0.00044931,120]
[339910889,1728147217301,-500.0,0.00044931,120]
[339910890,1728147217310,-1105.62,0.00044931,120]
[339910891,1728147217320,-877.47,0.00044931,120]
[339910892,1728147217330,-994.36,0.00044931,120]
[339910893,1728147217339,-610.33,0.00044931,120]
[339910894,1728147217349,-1035.51,0.00044931,120]
[339910895,1728147217358,-989.87,0.00044931,120]
[339910896,1728147217368,-383.26792687,0.00044931,120]
[339910897,1728147217377,-500.0,0.00044931,120]
[339910898,1728147217387,-871.55,0.00044931,120]
[339910899,1728147217396,-1333.03,0.00044931,120]
[339910900,1728147217586,-925.19,0.00044931,120]
[339910901,1728147217596,-500.0,0.00044931,120]
[339910902,1728147217605,-1502.02,0.00044931,120]
[339910903,1728147217615,-889.77,0.00044931,120]
[339910904,1728147217624,-600.24,0.00044931,120]
[339910905,1728147217633,-717.54,0.00044931,120]
[339910906,1728147217642,-963.18,0.00044931,120]
[339910907,1728147217651,-551.7,0.00044931,120]
[339910908,1728147217661,-1246.88,0.00044931,120]
[339910909,1728147217670,-584.17,0.00044931,120]
[339910910,1728147217681,-518.72,0.00044931,120]
[339910911,1728147217703,-500.0,0.00044931,120]
[339910912,1728147217713,-214.27518105,0.00044931,120]
[339910913,1728147217724,-1465.78,0.00044931,120]
[339910914,1728147217733,-500.0,0.00044931,120]
[339910915,1728147217743,-1472.61,0.00044931,120]
[339910916,1728147217753,-848.55,0.00044931,120]
[339910917,1728147217763,-500.0,0.00044931,120]
[339910918,1728147217773,-779.41,0.00044931,120]
[339910919,1728147217782,-777.28,0.00044931,120]
[339910920,1728147217792,-1683.21,0.00044931,120]
[339910921,1728147217803,-1078.6,0.00044931,120]
[339910922,1728147217813,-587.6,0.00044931,120]
[339910923,1728147217823,-600.74,0.00044931,120]
[339910924,1728147217833,-659.83,0.00044931,120]
[339910925,1728147217843,-706.43,0.00044931,120]
[339910926,1728147217853,-1054.81,0.00044931,120]
[339910927,1728147217863,-500.0,0.00044931,120]
[339910928,1728147217873,-1280.81,0.00044931,120]
[339910929,1728147217882,-500.0,0.00044931,120]
[339910930,1728147217892,-1363.15,0.00044931,120]
[339910931,1728147217902,-500.0,0.00044931,120]
[339910932,1728147217911,-905.57,0.00044931,120]
[339910933,1728147217921,-1284.12,0.00044931,120]
[339910934,1728147217931,-1235.27,0.00044931,120]
[339910935,1728147217941,-637.05,0.00044931,120]
[339910936,1728147217951,-1285.68,0.00044931,120]
[339910937,1728147217960,-503.25,0.00044931,120]
[339910938,1728147217970,-500.0,0.00044931,120]
[339910939,1728147217979,-938.91,0.00044931,120]
[339910940,1728147217989,-500.0,0.00044931,120]
[339910941,1728147217999,-669.13,0.00044931,120]
[339910942,1728147218008,-950.76,0.00044931,120]
[339910943,1728147218018,-1555.77,0.00044931,120]
[339910944,1728147218027,-343.32699997,0.00044931,120]
[339910945,1728147218037,-1214.24,0.00044931,120]
[339910946,1728147218046,-1046.87,0.00044931,120]
[339910947,1728147218055,-766.5,0.00044931,120]
[339910948,1728147218065,-1076.33,0.00044931,120]
[339910949,1728147218075,-500.0,0.00044931,120]
[339910950,1728147218084,-773.6,0.00044931,120]
[339910951,1728147218094,-956.46,0.00044931,120]
[339910952,1728147218104,-441.16215568,0.00044931,120]
[339910953,1728147218113,-1442.35,0.00044931,120]
[339910954,1728147218122,-1211.84,0.00044931,120]
[339910955,1728147218132,-370.95503325,0.00044931,120]
[339910956,1728147218141,-658.69,0.00044931,120]
[339910957,1728147218151,-1361.72,0.00044931,24]
[339910958,1728147218161,-1120.5,0.00044931,120]
[339910959,1728147218170,-500.0,0.00044931,120]
[339910960,1728147218179,-1128.3,0.00044931,120]
[339910961,1728147218189,-500.0,0.00044931,120]
[339910962,1728147218199,-627.25,0.00044931,120]
[339910963,1728147218210,-723.77,0.00044931,120]
[339910964,1728147218219,-1143.9,0.00044931,120]
[339910965,1728147218228,-502.75,0.00044931,120]
[339910966,1728147218238,-1054.07,0.00044931,120]
[339910967,1728147218247,-1458.38,0.00044931,120]
[339910968,1728147218257,-680.05,0.00044931,120]
[339910969,1728147218267,-2308.66,0.00044931,120]
[339910970,1728147218277,-526.17,0.00044931,120]
[339910971,1728147218287,-958.76,0.00044931,120]
[339910972,1728147218300,-521.35,0.00044931,120]
[339910973,1728147218311,-500.0,0.00044931,120]
[339910974,1728147218324,-500.0,0.00044931,120]
[339910975,1728147218336,-772.75,0.00044931,120]
[339910976,1728147218345,-957.22,0.00044931,120]
[339910977,1728147218357,-1182.56,0.00044931,120]
[339910978,1728147218367,-658.49,0.00044931,120]
[339910979,1728147218379,-500.0,0.00044931,120]
[339910980,1728147218389,-500.0,0.00044931,120]
[339910981,1728147218400,-764.47,0.00044931,120]
[339910982,1728147218410,-1230.05,0.00044931,120]
[339910983,1728147218422,-872.43,0.00044931,120]
[339910984,1728147218431,-842.7,0.00044931,120]
[339910985,1728147218442,-611.65,0.00044931,120]
[339910986,1728147218453,-500.0,0.00044931,120]
[339910987,1728147218463,-821.45,0.00044931,120]
[339910988,1728147218473,-1020.54,0.00044931,120]
[339910989,1728147218483,-508.95,0.00044931,120]
[339910990,1728147218494,-500.0,0.00044931,120]
[339910991,1728147218506,-1095.31,0.00044931,120]
[339910992,1728147218515,-1129.38,0.00044931,120]
[339910993,1728147218525,-500.0,0.00044931,120]
[339910994,1728147218534,-500.0,0.00044931,120]
[339910995,1728147218544,-541.01942906,0.00044931,120]
[339910996,1728147218554,-269.44009305,0.00044931,120]
[339910997,1728147218565,-500.0,0.00044931,120]
[339910998,1728147218574,-794.7,0.00044931,120]
[339910999,1728147218585,-830.85,0.00044931,120]
[339911000,1728147218594,-500.0,0.00044931,120]
[339911001,1728147218604,-1027.89,0.00044931,120]
[339911002,1728147218613,-1487.21,0.00044931,120]
[339911003,1728147218622,-1056.64,0.00044931,120]
[339911004,1728147218631,-500.0,0.00044931,120]
[339911005,1728147218641,-500.0,0.00044931,120]
[339911006,1728147218651,-966.23,0.00044931,120]
[339911007,1728147218661,-1402.9,0.00044931,120]
[339911008,1728147218670,-535.47970743,0.00044931,120]
[339911009,1728147218679,-500.0,0.00044931,120]
[339911010,1728147218689,-605.78,0.00044931,120]
[339911011,1728147218698,-534.83,0.00044931,120]
[339911012,1728147218708,-500.0,0.00044931,120]
[339911013,1728147218718,-1181.15,0.00044931,120]
[339911014,1728147218727,-567.65,0.00044931,120]
[339911015,1728147218737,-540.58,0.00044931,120]
[339911016,1728147218746,-602.72,0.00044931,120]
[339911017,1728147218756,-942.98,0.00044931,120]
[339911018,1728147218766,-500.0,0.00044931,120]
[339911019,1728147218775,-739.94,0.00044931,120]
[339911020,1728147218785,-500.0,0.00044931,120]
[339911021,1728147218795,-1122.04,0.00044931,120]
[339911022,1728147218805,-1176.15,0.00044931,120]
[339911023,1728147218815,-960.92,0.00044931,120]
[339911024,1728147218824,-500.0,0.00044931,120]
[339911025,1728147218834,-1087.37,0.00044931,120]
[339911026,1728147218843,-500.0,0.00044931,120]
[339911027,1728147218852,-548.14,0.00044931,120]
[339911028,1728147218862,-500.0,0.00044931,120]
[339911029,1728147218871,-605.165158,0.00044931,120]
[339911030,1728147218881,-808.84,0.00044931,120]
[339911031,1728147218890,-894.57,0.00044931,120]
[339911032,1728147218900,-744.22,0.00044931,120]
[339911033,1728147218909,-795.88,0.00044931,120]
[339911034,1728147218918,-1106.31,0.00044931,120]
[339911035,1728147218927,-500.0,0.00044931,120]
[339911036,1728147218937,-719.91,0.00044931,120]
[339911037,1728147218946,-912.73,0.00044931,120]
[339911038,1728147218956,-519.73,0.00044931,120]
[339911039,1728147218965,-1177.68,0.00044931,120]
[339911040,1728147218974,-780.08,0.00044931,14]
[339911041,1728147218983,-500.0,0.00044931,120]
[339911042,1728147218992,-789.28,0.00044931,120]
[339911043,1728147219001,-669.75,0.00044931,120]
[339911044,1728147219011,-750.93,0.00044931,120]
[339911045,1728147219020,-1092.22,0.00044931,120]
[339911046,1728147219030,-1378.36,0.00044931,120]
[339911047,1728147219039,-535.24,0.00044931,120]
[339911048,1728147219049,-745.48,0.00044931,120]
[339911049,1728147219058,-500.0,0.00044931,120]
[339911050,1728147219068,-1306.31,0.00044931,120]
[339911051,1728147219077,-500.0,0.00044931,120]
[339911052,1728147219086,-524.51,0.00044931,120]
[339911053,1728147219095,-513.93,0.00044931,120]
[339911054,1728147219104,-645.77,0.00044931,120]
[339911055,1728147219114,-833.87,0.00044931,120]
[339911056,1728147219123,-500.0,0.00044931,120]
[339911057,1728147219132,-1307.93,0.00044931,120]
[339911058,1728147219142,-1199.16,0.00044931,120]
[339911059,1728147219151,-177.85252972,0.00044931,120]
[339911060,1728147219161,-500.0,0.00044931,120]
[339911061,1728147219170,-1049.3,0.00044931,120]
[339911062,1728147219180,-985.84,0.00044931,120]
[339911063,1728147219189,-793.27,0.00044931,120]
[339911064,1728147219198,-1294.19,0.00044931,120]
[339911065,1728147219208,-2888.1,0.00044931,120]
[339911066,1728147219217,-687.14,0.00044931,120]
[339911067,1728147219227,-989.98,0.00044931,120]
[339911068,1728147219236,-1432.95,0.00044931,120]
[339911069,1728147219247,-550.68,0.00044931,120]
[339911070,1728147219257,-724.21,0.00044931,120]
[339911071,1728147219267,-543.28,0.00044931,120]
[339911072,1728147219276,-753.39,0.00044931,120]
[339911073,1728147219286,-807.23,0.00044931,120]
[339911074,1728147219296,-500.0,0.00044931,120]
[339911075,1728147219305,-708.64,0.00044931,120]
[339911076,1728147219315,-562.5,0.00044931,120]
[339911077,1728147219325,-1195.82,0.00044931,120]
[339911078,1728147219335,-905.32,0.00044931,7]
[339911079,1728147219346,-500.0,0.00044931,120]
[339911080,1728147219355,-1289.36,0.00044931,120]
[339911081,1728147219364,-968.05,0.00044931,120]
[339911082,1728147219374,-687.72,0.00044931,120]
[339911083,1728147219384,-1417.19,0.00044931,120]
[339911084,1728147219393,-763.68,0.00044931,120]
[339911085,1728147219403,-500.0,0.00044931,120]
[339911086,1728147219413,-1687.35,0.00044931,120]
[339911087,1728147219423,-785.36,0.00044931,120]
[339911088,1728147219433,-500.0,0.00044931,120]
[339911089,1728147219443,-1179.64,0.00044931,120]
[339911090,1728147219454,-582.36,0.00044931,120]
[339911091,1728147219465,-643.53,0.00044931,120]
[339911092,1728147219474,-1536.92,0.00044931,120]
[339911093,1728147219484,-1213.33,0.00044931,120]
[339911094,1728147219493,-533.33,0.00044931,120]
[339911095,1728147219503,-711.86,0.00044931,120]
[339911096,1728147219514,-1142.18,0.00044931,120]
[339911097,1728147219529,-786.32,0.00044931,120]
[339911098,1728147219538,-1479.11,0.00044931,120]
[339911099,1728147219548,-500.0,0.00044931,120]
[339911100,1728147219558,-649.26,0.00044931,120]
[339911101,1728147219570,-903.52,0.00044931,120]
[339911102,1728147219580,-500.0,0.00044931,120]
[339911103,1728147219589,-915.1,0.00044931,120]
[339911104,1728147219600,-642.95,0.00044931,120]
[339911105,1728147219609,-500.0,0.00044931,120]
[339911106,1728147219618,-1032.8,0.00044931,120]
[339911107,1728147219628,-931.55,0.00044931,120]
[339911108,1728147219638,-500.0,0.00044931,120]
[339911109,1728147219647,-1521.03,0.00044931,120]
[339911110,1728147219657,-500.0,0.00044931,120]
[339911111,1728147219667,-901.49,0.00044931,120]
[339911112,1728147219676,-500.0,0.00044931,120]
[339911113,1728147219686,-1304.21,0.00044931,120]
[339911114,1728147219697,-1061.61,0.00044931,120]
[339911115,1728147219706,-701.97,0.00044931,120]
[339911116,1728147219716,-1011.56,0.00044931,120]
[339911117,1728147219726,-534.36,0.00044931,120]
[339911118,1728147219736,-589.66,0.00044931,120]
[339911119,1728147219746,-500.0,0.00044931,120]
[339911120,1728147219756,-512.82,0.00044931,120]
[339911121,1728147219765,-1198.94,0.00044931,120]
[339911122,1728147219775,-836.31,0.00044931,120]
[339911123,1728147219785,-714.05,0.00044931,120]
[339911124,1728147219795,-908.97,0.00044931,120]
[339911125,1728147219805,-787.9,0.00044931,120]
[339911126,1728147219814,-530.83,0.00044931,120]
[339911127,1728147219824,-1485.49,0.00044931,120]
[339911128,1728147219833,-763.04,0.00044931,120]
[339911129,1728147219843,-518.08,0.00044931,120]
[339911130,1728147219852,-500.0,0.00044931,120]
[339911131,1728147219862,-500.0,0.00044931,120]
[339911132,1728147219871,-612.29,0.00044931,120]
[339911133,1728147219880,-563.43,0.00044931,120]
[339911134,1728147219891,-500.0,0.00044931,120]
[339911135,1728147219900,-822.39,0.00044931,120]
[339911136,1728147219910,-500.0,0.00044931,120]
[339911137,1728147219919,-1306.65,0.00044931,120]
[339911138,1728147219929,-1233.21,0.00044931,120]
[339911139,1728147219939,-868.45,0.00044931,120]
[339911140,1728147219949,-732.59,0.00044931,120]
[339911141,1728147219959,-500.0,0.00044931,120]
[339911142,1728147219968,-583.48,0.00044931,120]
[339911143,1728147219978,-528.8,0.00044931,120]
[339911144,1728147219988,-1321.45,0.00044931,120]
[339911145,1728147219998,-658.55,0.00044931,120]
[339911146,1728147220008,-500.0,0.00044931,120]
[339911147,1728147220018,-253.28198868,0.00044931,120]
[339911148,1728147220027,-500.0,0.00044931,120]
[339911149,1728147220037,-993.81,0.00044931,120]
[339911150,1728147220046,-277.14723036,0.00044931,120]
[339911151,1728147220057,-500.0,0.00044931,120]
[339911152,1728147220067,-1392.91,0.00044931,120]
[339911153,1728147220077,-694.83,0.00044931,120]
[339911154,1728147220086,-416.94537886,0.00044931,120]
[339911155,1728147220096,-953.14,0.00044931,120]
[339911156,1728147220105,-500.0,0.00044931,120]
[339911157,1728147220115,-698.41,0.00044931,120]
[339911158,1728147220124,-771.14,0.00044931,120]
[339911159,1728147220135,-885.57,0.00044931,120]
[339911160,1728147220145,-702.92,0.00044931,120]
[339911161,1728147220155,-1011.8,0.00044931,120]
[339911162,1728147220164,-563.02,0.00044931,120]
[339911163,1728147220175,-1565.99,0.00044931,120]
[339911164,1728147220185,-1294.33,0.00044931,120]
[339911165,1728147220194,-918.37,0.00044931,120]
[339911166,1728147220203,-690.04,0.00044931,120]
[339911167,1728147220213,-894.45,0.00044931,120]
[339911168,1728147220223,-500.0,0.00044931,120]
[339911169,1728147220232,-333.35797291,0.00044931,120]
[339911170,1728147220242,-762.45,0.00044931,120]
[339911171,1728147220253,-588.86,0.00044931,120]
[339911172,1728147220262,-1037.04,0.00044931,120]
[339911173,1728147220272,-729.96,0.00044931,120]
[339911174,1728147220282,-666.23,0.00044931,120]
[339911175,1728147220292,-500.0,0.00044931,120]
[339911176,1728147220301,-922.09,0.00044931,120]
[339911177,1728147220311,-500.0,0.00044931,120]
[339911178,1728147220322,-500.0,0.00044931,120]
[339911179,1728147220332,-1207.02,0.00044931,120]
[339911180,1728147220342,-1060.1,0.00044931,120]
[339911181,1728147220352,-500.0,0.00044931,120]
[339911182,1728147220361,-668.81,0.00044931,120]
[339911183,1728147220371,-500.0,0.00044931,120]
[339911184,1728147220381,-501.25,0.00044931,120]
[339911185,1728147220391,-500.0,0.00044931,120]
[339911186,1728147220400,-525.19,0.00044931,120]
[339911187,1728147220409,-500.0,0.00044931,120]
[339911188,1728147220419,-500.0,0.00044931,120]
[339911189,1728147220428,-424.74962504,0.00044931,120]
[339911190,1728147220438,-648.61,0.00044931,120]
[339911191,1728147220447,-1480.12,0.00044931,120]
[339911192,1728147220457,-1830.42,0.00044931,120]
[339911193,1728147220466,-1094.29,0.00044931,120]
[339911194,1728147220476,-692.2,0.00044931,120]
[339911195,1728147220485,-1171.31,0.00044931,120]
[339911196,1728147220494,-500.0,0.00044931,120]
[339911197,1728147220504,-980.64,0.00044931,120]
[339911198,1728147220513,-993.33,0.00044931,120]
[339911199,1728147220523,-1156.11,0.00044931,120]
[339911200,1728147220532,-500.0,0.00044931,120]
[339911201,1728147220542,-759.97,0.00044931,120]
[339911202,1728147220551,-500.0,0.00044931,120]
[339911203,1728147220560,-500.0,0.00044931,120]
[339911204,1728147220570,-809.87,0.00044931,120]
[339911205,1728147220581,-500.0,0.00044931,120]
[339911206,1728147220590,-1128.79,0.00044931,120]
[339911207,1728147220599,-629.84363846,0.00044931,120]
[339911208,1728147220608,-620.59,0.00044931,120]
[339911209,1728147220617,-1212.72,0.00044931,120]
[339911210,1728147220627,-1002.95,0.00044931,120]
[339911211,1728147220636,-737.61,0.00044931,120]
[339911212,1728147220646,-524.73,0.00044931,120]
[339911213,1728147220655,-500.0,0.00044931,120]
[339911214,1728147220665,-1377.95,0.00044931,120]
[339911215,1728147220674,-1543.57,0.00044931,120]
[339911216,1728147220683,-813.84,0.00044931,120]
[339911217,1728147220693,-500.0,0.00044931,120]
[339911218,1728147220702,-500.0,0.00044931,120]
[339911219,1728147220712,-531.1,0.00044931,120]
[339911220,1728147220721,-500.0,0.00044931,120]
[339911221,1728147220730,-961.07,0.00044931,120]
[339911222,1728147220740,-784.98,0.00044931,120]
[339911223,1728147220950,-711.97,0.00044931,120]
[339911224,1728147220959,-917.69,0.00044931,120]
[339911225,1728147220968,-500.0,0.00044931,120]
[339911226,1728147220978,-906.22,0.00044931,120]
[339911227,1728147220987,-782.36,0.00044931,120]
[339911228,1728147220995,-677.3,0.00044931,120]
[339911229,1728147221004,-500.0,0.00044931,120]
[339911230,1728147221014,-910.94,0.00044931,120]
[339911231,1728147221023,-1205.88,0.00044931,120]
[339911232,1728147221031,-1344.47,0.00044931,120]
[339911233,1728147221041,-814.32,0.00044931,120]
[339911234,1728147221049,-542.61,0.00044931,120]
[339911235,1728147221058,-948.43,0.00044931,120]
[339911236,1728147221068,-500.0,0.00044931,120]
[339911237,1728147221077,-676.76,0.00044931,120]
[339911238,1728147221086,-1066.49,0.00044931,120]
[339911239,1728147221095,-500.0,0.00044931,120]
[339911240,1728147221105,-500.0,0.00044931,120]
[339911241,1728147221114,-1541.44,0.00044931,120]
[339911242,1728147221123,-500.0,0.00044931,120]
[339911243,1728147221133,-554.98505173,0.00044931,120]
[339911244,1728147221144,-500.0,0.00044931,120]
[339911245,1728147221154,-500.0,0.00044931,120]
[339911246,1728147221163,-1320.61,0.00044931,120]
[339911247,1728147221173,-659.62,0.00044931,120]
[339911248,1728147221183,-1392.32,0.00044931,120]
[339911249,1728147221192,-500.0,0.00044931,120]
[339911250,1728147221201,-307.3847771,0.00044931,120]
[339911251,1728147221210,-224.57188856,0.00044931,120]
[339911252,1728147221219,-500.0,0.00044931,120]
[339911253,1728147221229,-1117.39,0.00044931,120]